bitfinex/quotes_BTCUSD_20250617
["timestamp","ask_amount","ask_price","bid_price","bid_amount"]
[1750141113258,1.72026779,107230.0,107220.0,0.00047241]
[1750141113495,1.72326779,107230.0,107220.0,0.00047241]
[1750141113703,1.71926779,107230.0,107220.0,0.00047241]
[1750141113916,1.72326779,107230.0,107220.0,0.00047241]
[1750141114125,1.72926779,107230.0,107220.0,0.00047241]
[1750141114333,1.72526779,107230.0,107220.0,0.00047241]
[1750141114983,1.49588282,107230.0,107220.0,0.00047241]
[1750141115415,1.49488282,107230.0,107220.0,0.00047241]
[1750141115835,1.50288282,107230.0,107220.0,0.00047241]
[1750141116383,1.53059664,107230.0,107220.0,0.00047241]
[1750141116806,1.53067664,107230.0,107220.0,0.00047241]
[1750141117241,1.33559664,107230.0,107220.0,0.00047241]
[1750141117430,1.53067664,107230.0,107220.0,0.00047241]
[1750141117692,1.43452742,107230.0,107220.0,0.00047241]
[1750141120970,1.23944742,107230.0,107220.0,0.00047241]
[1750141121458,1.43464742,107230.0,107220.0,0.00047241]
[1750141122413,1.46266642,107230.0,107220.0,0.00047241]
[1750141122631,1.95596642,107230.0,107220.0,0.00047241]
[1750141123076,1.76076642,107230.0,107220.0,0.00047241]
[1750141123317,1.95596642,107230.0,107220.0,0.00047241]
[1750141123977,2.05211564,107230.0,107220.0,0.00047241]
[1750141124427,1.85691564,107230.0,107220.0,0.00047241]
[1750141124642,2.05211564,107230.0,107220.0,0.00047241]
[1750141124928,1.85691564,107230.0,107220.0,0.00047241]
[1750141125158,2.05203564,107230.0,107220.0,0.00047241]
[1750141127309,2.10203564,107230.0,107220.0,0.00047241]
[1750141128679,1.60873564,107230.0,107220.0,0.00047241]
[1750141134474,1.68667528,107230.0,107220.0,0.00047241]
[1750141134885,1.91665551,107230.0,107220.0,0.00047241]
[1750141136234,1.95355694,107230.0,107220.0,0.00047241]
[1750141136443,2.05172694,107230.0,107220.0,0.00047241]
[1750141137314,0.26111709,107210.0,107200.0,0.000688]
[1750141137521,1.54534236,107210.0,107200.0,0.00082978]
[1750141137727,1.56765958,107210.0,107200.0,0.00082978]
[1750141138185,1.59568058,107210.0,107200.0,0.00082978]
[1750141138869,1.59863551,107210.0,107200.0,0.00082978]
[1750141139091,1.82855892,107210.0,107200.0,0.00082978]
[1750141139309,1.95254833,107210.0,107200.0,0.00082978]
[1750141139537,1.95654833,107210.0,107200.0,0.00082978]
[1750141139763,1.94954833,107210.0,107200.0,0.00082978]
[1750141140191,1.95954833,107210.0,107200.0,0.00082978]
[1750141141365,1.32788229,107190.0,107180.0,0.01]
[1750141141590,1.81513225,107190.0,107180.0,0.01]
[1750141141822,1.06741634,107160.0,107150.0,0.10612872]
[1750141142059,1.61061366,107160.0,107150.0,0.07724828]
[1750141142289,1.62641366,107160.0,107150.0,0.07724828]
[1750141142516,1.86770766,107160.0,107150.0,0.07433015]
[1750141142747,1.86770766,107160.0,107150.0,0.00010143]
[1750141142981,1.63831483,107160.0,107150.0,0.00010143]
[1750141143650,1.66211743,107160.0,107150.0,0.00010143]
[1750141143880,1.64131483,107160.0,107150.0,0.00010143]
[1750141144099,1.64231483,107160.0,107150.0,0.00410143]
[1750141144330,1.64131483,107160.0,107150.0,0.00010143]
[1750141144544,1.66978489,107160.0,107150.0,0.00010143]
[1750141145187,1.76293411,107160.0,107150.0,0.00010143]
[1750141145608,1.77431132,107160.0,107150.0,0.00010143]
[1750141145841,1.77531132,107160.0,107150.0,0.00410143]
[1750141146282,2.26861132,107160.0,107150.0,0.00410143]
[1750141148539,2.31861132,107160.0,107150.0,0.00410143]
[1750141148970,2.3964733,107160.0,107150.0,0.00410143]
[1750141149453,2.46909497,107160.0,107150.0,0.00410143]
[1750141149714,1.10008524,107140.0,107130.0,0.05768145]
[1750141149937,1.350807,107140.0,107130.0,0.0577286]
[1750141150370,1.844107,107140.0,107130.0,0.0577286]
[1750141150611,1.86624406,107140.0,107130.0,0.0577286]
[1750141151052,1.80459085,107140.0,107130.0,0.0577286]
[1750141151268,2.00359085,107140.0,107130.0,0.0587286]
[1750141151483,2.05691328,107140.0,107130.0,0.0587286]
[1750141151700,1.86191328,107140.0,107130.0,0.0587286]
[1750141151933,2.05691328,107140.0,107130.0,0.0587286]
[1750141152594,0.57060867,107110.0,107100.0,0.15]
[1750141152810,1.32633582,107110.0,107100.0,0.15291932]
[1750141153258,1.35438082,107110.0,107100.0,0.15291932]
[1750141153705,1.35438082,107110.0,107100.0,0.15291936]
[1750141153922,1.15938082,107110.0,107100.0,0.15291936]
[1750141154145,1.35438082,107110.0,107100.0,0.15291936]
[1750141154377,1.58556952,107110.0,107100.0,0.15491936]
[1750141154594,1.58556952,107110.0,107100.0,0.15491956]
[1750141155043,1.91516952,107110.0,107100.0,0.15491956]
[1750141155259,2.11040952,107110.0,107100.0,0.152]
[1750141156219,2.10940952,107110.0,107100.0,0.15]
[1750141156444,2.10940952,107110.0,107100.0,0.151]
[1750141156445,2.12048952,107110.0,107100.0,0.151]
[1750141156887,2.11648952,107110.0,107100.0,0.151]
[1750141157327,1.72333874,107110.0,107100.0,0.151]
[1750141158883,1.72333874,107110.0,107090.0,0.0162513]
[1750141158884,6.87785732,107100.0,107090.0,0.0162513]
[1750141159112,0.83604195,107090.0,107080.0,0.07672667]
[1750141159333,1.07975668,107090.0,107080.0,0.07672667]
[1750141160227,1.07988855,107090.0,107080.0,0.07672667]
[1750141160451,0.92492855,107090.0,107080.0,0.07672667]
[1750141160667,1.08515186,107090.0,107080.0,0.10912667]
[1750141160882,1.12036855,107090.0,107080.0,0.10912667]
[1750141161323,1.12040855,107090.0,107080.0,0.10912667]
[1750141161544,1.08535186,107090.0,107080.0,0.11012667]
[1750141161764,1.12240855,107090.0,107080.0,0.11012667]
[1750141162201,1.12340855,107090.0,107080.0,0.11012667]
[1750141162418,1.1326159,107090.0,107080.0,0.11012667]
[1750141165105,1.1326559,107090.0,107080.0,0.11012667]
[1750141166212,1.1326559,107090.0,107080.0,0.07772667]
[1750141166437,0.9024672,107090.0,107080.0,0.07772667]
[1750141166651,1.1326559,107090.0,107080.0,0.07772667]
[1750141168652,1.1326559,107090.0,107080.0,0.09382667]
[1750141168868,1.1326559,107090.0,107080.0,0.11002667]
[1750141169308,1.15479326,107090.0,107080.0,0.11002667]
[1750141173838,1.15479326,107090.0,107080.0,0.09392667]
[1750141174069,0.76058456,107090.0,107080.0,0.07772667]
[1750141174291,1.15539326,107090.0,107080.0,0.07772667]
[1750141175002,1.21475524,107090.0,107080.0,0.07772667]
[1750141176269,1.31090446,107090.0,107080.0,0.07772667]
[1750141176717,1.21475524,107090.0,107080.0,0.07772667]
[1750141177602,1.25190454,107090.0,107080.0,0.07772667]
[1750141177841,1.22040454,107090.0,107080.0,0.07772667]
[1750141179403,1.19254256,107090.0,107080.0,0.07772667]
[1750141180604,1.24789471,107090.0,107080.0,0.07772667]
[1750141181259,0.98993772,107090.0,107080.0,0.10842667]
[1750141181478,1.19230256,107090.0,107080.0,0.10842667]
[1750141182164,1.2201381,107090.0,107080.0,0.10842667]
[1750141182387,1.19230256,107090.0,107080.0,0.10842667]
[1750141182604,1.15524587,107090.0,107080.0,0.10842667]
[1750141183032,0.95936587,107090.0,107080.0,0.10842667]
[1750141183254,1.02427435,107090.0,107080.0,0.10842667]
[1750141183478,0.12469064,107090.0,107080.0,0.55340699]
[1750141183778,0.02526923,107090.0,107080.0,0.6851896]
[1750141183996,0.2399439,107110.0,107100.0,0.22677834]
[1750141184241,0.26771276,107110.0,107100.0,0.0307]
[1750141184456,0.05326799,107110.0,107100.0,0.47564056]
[1750141184650,0.06260409,107110.0,107100.0,0.46630393]
[1750141184902,0.2863847,107110.0,107100.0,0.47564073]
[1750141185128,0.2677131,107110.0,107100.0,0.46630393]
[1750141185384,0.2677131,107110.0,107100.0,0.0307]
[1750141185385,0.299417,107110.0,107100.0,0.0307]
[1750141185602,0.454577,107110.0,107100.0,0.0307]
[1750141186424,0.455577,107110.0,107100.0,0.0377]
[1750141186652,0.455577,107110.0,107100.0,0.0407]
[1750141189790,0.6857657,107110.0,107100.0,0.01]
[1750141191169,0.78200746,107110.0,107100.0,0.01]
[1750141193258,0.55181876,107110.0,107100.0,0.01]
[1750141193459,0.259377,107110.0,107100.0,0.0419]
[1750141193683,0.455497,107110.0,107100.0,0.0419]
[1750141198418,0.455377,107110.0,107100.0,0.0419]
[1750141204556,0.41832031,107110.0,107100.0,0.0419]
[1750141204751,0.455377,107110.0,107100.0,0.0419]
[1750141205549,0.07265256,107110.0,107100.0,0.49617691]
[1750141205755,0.13216434,107110.0,107100.0,0.49617691]
[1750141206162,0.0726523,107110.0,107100.0,0.60695952]
[1750141206391,0.00104723,107110.0,107100.0,0.76163952]
[1750141206630,0.03810392,107110.0,107100.0,0.99186822]
[1750141206854,0.00104723,107110.0,107100.0,0.99186822]
[1750141207306,0.00104723,107110.0,107100.0,1.33816262]
[1750141207530,0.00104723,107110.0,107100.0,1.40667145]
[1750141207742,4.723e-05,107110.0,107100.0,1.40367145]
[1750141207976,0.1,107130.0,107120.0,0.2671114]
[1750141208205,0.13705669,107130.0,107120.0,0.74881377]
[1750141208457,0.1809376,107130.0,107120.0,0.54250072]
[1750141208665,0.1809376,107130.0,107120.0,0.38770072]
[1750141209110,0.19027187,107130.0,107120.0,0.38770072]
[1750141209329,0.1809376,107130.0,107120.0,0.38770072]
[1750141209551,0.1809376,107130.0,107120.0,0.61788942]
[1750141209768,0.16226966,107130.0,107120.0,0.61788942]
[1750141209979,0.18093734,107130.0,107120.0,0.61788942]
[1750141210399,0.18093734,107130.0,107120.0,0.61988942]
[1750141210616,0.19027144,107130.0,107120.0,0.61988942]
[1750141210826,0.19027144,107130.0,107120.0,0.62188942]
[1750141210827,0.19960571,107130.0,107120.0,0.62188942]
[1750141211051,0.38629547,107130.0,107120.0,0.27678945]
[1750141211264,0.37696154,107130.0,107120.0,0.43158945]
[1750141212148,0.37696154,107130.0,107120.0,0.26745448]
[1750141212403,0.36762744,107130.0,107120.0,0.23505457]
[1750141212614,0.35829317,107130.0,107120.0,0.03901276]
[1750141213289,0.35829317,107130.0,107120.0,0.04834808]
[1750141213738,0.35829317,107130.0,107120.0,0.02834808]
[1750141213959,0.35829317,107130.0,107120.0,0.01901276]
[1750141214621,0.35829317,107130.0,107120.0,0.00447191]
[1750141214837,0.58848187,107130.0,107120.0,0.00447191]
[1750141215268,0.74316187,107130.0,107120.0,0.00447191]
[1750141216159,0.75876187,107130.0,107120.0,0.00447191]
[1750141218422,0.74316187,107130.0,107120.0,0.00447191]
[1750141218868,0.75936187,107130.0,107120.0,0.00447191]
[1750141219989,0.77546187,107130.0,107120.0,0.00447191]
[1750141222647,0.54527317,107130.0,107120.0,0.00447191]
[1750141222876,0.77546187,107130.0,107120.0,0.00447191]
[1750141223101,0.74316187,107130.0,107120.0,0.00447191]
[1750141223548,0.35829317,107130.0,107120.0,0.00447191]
[1750141223788,0.55357317,107130.0,107120.0,0.00447191]
[1750141224437,0.55357317,107130.0,107120.0,0.02057191]
[1750141224942,0.55357317,107130.0,107120.0,0.00447191]
[1750141227897,0.55357317,107130.0,107120.0,0.01977191]
[1750141228135,0.35829317,107130.0,107120.0,0.01977191]
[1750141228375,0.35829317,107130.0,107120.0,0.23731925]
[1750141228376,0.32123648,107130.0,107120.0,0.23731925]
[1750141228602,0.36762736,107130.0,107120.0,0.49551321]
[1750141228874,0.18093778,107130.0,107120.0,0.49551321]
[1750141229149,0.18093778,107130.0,107120.0,0.51418272]
[1750141229606,0.38629486,107130.0,107120.0,0.25598963]
[1750141229822,0.3769612,107130.0,107120.0,0.25598963]
[1750141230335,0.36762727,107130.0,107120.0,0.25598963]
[1750141230557,0.36762727,107130.0,107120.0,0.2653246]
[1750141230779,0.40842727,107130.0,107120.0,0.2653246]
[1750141232141,0.40842727,107130.0,107120.0,0.24665457]
[1750141232448,0.62928178,107130.0,107120.0,0.00447191]
[1750141232676,0.65998178,107130.0,107120.0,0.00447191]
[1750141236454,0.99998178,107130.0,107120.0,0.00447191]
[1750141249629,1.15402178,107130.0,107120.0,0.00447191]
[1750141249846,1.13852178,107130.0,107120.0,0.00447191]
[1750141250075,1.15452178,107130.0,107120.0,0.00447191]
[1750141255841,1.13852178,107130.0,107120.0,0.00447191]
[1750141256059,1.12332178,107130.0,107120.0,0.00447191]
[1750141258365,1.13882178,107130.0,107120.0,0.00447191]
[1750141258584,1.15532178,107130.0,107120.0,0.00447191]
[1750141259467,0.92513308,107130.0,107120.0,0.00447191]
[1750141259694,1.15532178,107130.0,107120.0,0.00447191]
[1750141262170,0.92513308,107130.0,107120.0,0.00447191]
[1750141262401,1.15532178,107130.0,107120.0,0.00447191]
[1750141263366,1.13882178,107130.0,107120.0,0.00447191]
[1750141263632,0.90863308,107130.0,107120.0,0.00447191]
[1750141263901,1.15432178,107130.0,107120.0,0.00447191]
[1750141271596,0.92413308,107130.0,107120.0,0.00447191]
[1750141271810,1.15432178,107130.0,107120.0,0.00447191]
[1750141273210,1.50314375,107130.0,107120.0,0.00447191]
[1750141274075,1.50314375,107130.0,107120.0,0.00247191]
[1750141274295,1.50314375,107130.0,107120.0,0.00047191]
[1750141274512,0.81079514,107130.0,107120.0,0.00047191]
[1750141274771,1.50306375,107130.0,107120.0,0.00047191]
[1750141274986,1.50310961,107130.0,107120.0,0.00047191]
[1750141275871,1.50510961,107130.0,107120.0,0.00147191]
[1750141276158,1.50610961,107130.0,107120.0,0.00047191]
[1750141276382,1.50810961,107130.0,107120.0,0.00147191]
[1750141279809,1.01055514,107130.0,107120.0,0.00147191]
[1750141280025,1.50810961,107130.0,107120.0,0.00147191]
[1750141280464,1.47105292,107130.0,107120.0,0.00147191]
[1750141280681,1.50810961,107130.0,107120.0,0.00147191]
[1750141281374,1.04761183,107130.0,107120.0,0.00147191]
[1750141281588,1.50810961,107130.0,107120.0,0.00147191]
[1750141283375,1.5080601,107130.0,107120.0,0.00147191]
[1750141283812,1.04756232,107130.0,107120.0,0.00147191]
[1750141284021,1.5080601,107130.0,107120.0,0.00147191]
[1750141288154,1.7053401,107130.0,107120.0,0.00147191]
[1750141288372,1.68307262,107130.0,107120.0,0.00147191]
[1750141288591,1.7053336,107130.0,107120.0,0.00147191]
[1750141293917,1.05007582,107130.0,107120.0,0.00147191]
[1750141294139,1.7053736,107130.0,107120.0,0.00147191]
[1750141297107,1.20781913,107130.0,107120.0,0.00147191]
[1750141297316,1.7053934,107130.0,107120.0,0.00147191]
[1750141298867,1.24327792,107130.0,107120.0,0.00147191]
[1750141299097,1.40703792,107130.0,107120.0,0.00147191]
[1750141299546,1.44409461,107130.0,107120.0,0.00147191]
[1750141302108,1.7058534,107130.0,107120.0,0.00147191]
[1750141310968,1.73367962,107130.0,107120.0,0.00147191]
[1750141313597,1.76750345,107130.0,107120.0,0.00147191]
[1750141315854,1.76759823,107130.0,107120.0,0.00147191]
[1750141323325,0.88061682,107130.0,107120.0,0.00147191]
[1750141323569,1.7022744,107130.0,107120.0,0.00147191]
[1750141323786,1.7340744,107130.0,107120.0,0.00147191]
[1750141324016,1.5393544,107130.0,107120.0,0.00147191]
[1750141324241,1.7340744,107130.0,107120.0,0.00147191]
[1750141324937,1.69069552,107130.0,107120.0,0.00147191]
[1750141326288,1.78905552,107130.0,107120.0,0.00147191]
[1750141326511,1.69069552,107130.0,107120.0,0.00147191]
[1750141326729,1.5238544,107130.0,107120.0,0.00147191]
[1750141326958,1.5075544,107130.0,107120.0,0.00147191]
[1750141327182,1.7022744,107130.0,107120.0,0.00147191]
[1750141327639,1.5075544,107130.0,107120.0,0.00147191]
[1750141327863,1.51101771,107130.0,107120.0,0.00147191]
[1750141328106,1.40708004,107130.0,107120.0,0.03407191]
[1750141328573,1.63733883,107130.0,107120.0,0.03407191]
[1750141328794,1.44261883,107130.0,107120.0,0.03407191]
[1750141329015,1.21387794,107130.0,107120.0,0.03407191]
[1750141329235,1.63733883,107130.0,107120.0,0.03407191]
[1750141329458,1.67439552,107130.0,107120.0,0.03407191]
[1750141329701,1.63733883,107130.0,107120.0,0.03407191]
[1750141330373,1.5075544,107130.0,107120.0,0.03407191]
[1750141330593,1.66521771,107130.0,107120.0,0.03407191]
[1750141330827,1.67439552,107130.0,107120.0,0.03407191]
[1750141331319,1.7022744,107130.0,107120.0,0.03407191]
[1750141332199,1.7022744,107130.0,107120.0,0.00147191]
[1750141332415,1.5075544,107130.0,107120.0,0.00147191]
[1750141332846,1.7022744,107130.0,107120.0,0.00147191]
[1750141333280,1.5075544,107130.0,107120.0,0.00147191]
[1750141333532,1.7022744,107130.0,107120.0,0.00147191]
[1750141337541,2.05958241,107130.0,107120.0,0.00147191]
[1750141337764,2.1758214,107130.0,107120.0,0.00147191]
[1750141337994,2.1258214,107130.0,107120.0,0.00147191]
[1750141338217,2.14794252,107130.0,107120.0,0.00147191]
[1750141338446,2.1254104,107130.0,107120.0,0.00147191]
[1750141338861,2.0754104,107130.0,107120.0,0.00147191]
[1750141339104,2.18076236,107130.0,107120.0,0.00147191]
[1750141339576,2.12541021,107130.0,107120.0,0.00147191]
[1750141339836,2.23076236,107130.0,107120.0,0.00147191]
[1750141340056,7.24359052,107130.0,107120.0,0.00147191]
[1750141340917,7.34231211,107130.0,107120.0,0.00147191]
[1750141341134,7.24395211,107130.0,107120.0,0.00147191]
[1750141342005,7.24394641,107130.0,107120.0,0.00147191]
[1750141343539,7.01356709,107130.0,107120.0,0.00147191]
[1750141343753,7.05069225,107130.0,107120.0,0.00147191]
[1750141344880,7.05068937,107130.0,107120.0,0.00147191]
[1750141347270,7.07873637,107130.0,107120.0,0.00147191]
[1750141347733,7.07873419,107130.0,107120.0,0.00147191]
[1750141350562,7.07873183,107130.0,107120.0,0.00147191]
[1750141350993,7.17709183,107130.0,107120.0,0.00147191]
[1750141352094,7.40747115,107130.0,107120.0,0.00147191]
[1750141352326,1.06844318,107100.0,107090.0,0.10582872]
[1750141352600,1.35936494,107100.0,107090.0,0.10582872]
[1750141353886,1.36036494,107100.0,107090.0,0.10982872]
[1750141354099,1.36036494,107100.0,107090.0,0.09362872]
[1750141354533,1.36036494,107100.0,107090.0,0.10982872]
[1750141354744,1.36036494,107100.0,107090.0,0.0356]
[1750141355154,1.55768494,107100.0,107090.0,0.0356]
[1750141355405,1.55768494,107100.0,107090.0,0.0376]
[1750141356077,1.55768494,107100.0,107090.0,0.006]
[1750141357152,1.59468043,107100.0,107090.0,0.006]
[1750141357579,1.59468043,107100.0,107090.0,0.0381]
[1750141359870,1.59468043,107100.0,107090.0,0.0215]
[1750141360083,1.59468043,107100.0,107090.0,0.006]
[1750141360970,1.59470587,107100.0,107090.0,0.006]
[1750141361632,1.59470587,107100.0,107090.0,0.0225]
[1750141362508,1.61696894,107100.0,107090.0,0.0225]
[1750141364642,1.61696894,107100.0,107090.0,0.0384]
[1750141364852,1.61696894,107100.0,107090.0,0.006]
[1750141367714,1.61688894,107100.0,107090.0,0.006]
[1750141369248,1.15610486,107100.0,107090.0,0.0223]
[1750141369461,1.61688894,107100.0,107090.0,0.0223]
[1750141371651,1.61688894,107100.0,107090.0,0.006]
[1750141372085,1.61688894,107100.0,107090.0,0.0375]
[1750141374138,1.61688894,107100.0,107090.0,0.0225]
[1750141374402,1.61688894,107100.0,107090.0,0.006]
[1750141377960,1.61688894,107100.0,107090.0,0.005736]
[1750141382550,1.63188894,107100.0,107090.0,0.005736]
[1750141384303,1.61688894,107100.0,107090.0,0.005736]
[1750141400375,1.67611158,107100.0,107090.0,0.005736]
[1750141402166,1.64471158,107100.0,107090.0,0.005736]
[1750141406150,1.1839275,107100.0,107090.0,0.005736]
[1750141406366,1.64471158,107100.0,107090.0,0.005736]
[1750141412374,1.67711158,107100.0,107090.0,0.005736]
[1750141414847,1.64471158,107100.0,107090.0,0.005736]
[1750141417387,1.1839275,107100.0,107090.0,0.005736]
[1750141417600,1.64471158,107100.0,107090.0,0.005736]
[1750141418255,1.61688894,107100.0,107090.0,0.005736]
[1750141419544,1.63248894,107100.0,107090.0,0.005736]
[1750141420640,1.64818894,107100.0,107090.0,0.005736]
[1750141425557,1.18740486,107100.0,107090.0,0.005736]
[1750141425773,1.64818894,107100.0,107090.0,0.005736]
[1750141425980,1.67601158,107100.0,107090.0,0.005736]
[1750141426816,1.70406158,107100.0,107090.0,0.005736]
[1750141427704,1.68836158,107100.0,107090.0,0.005736]
[1750141430951,1.68800158,107100.0,107090.0,0.005736]
[1750141431198,1.67240158,107100.0,107090.0,0.005736]
[1750141439120,1.70450158,107100.0,107090.0,0.005736]
[1750141440608,1.2437175,107100.0,107090.0,0.005736]
[1750141440835,1.70450158,107100.0,107090.0,0.005736]
[1750141442667,1.51026158,107100.0,107090.0,0.005736]
[1750141442910,1.64449894,107100.0,107090.0,0.005736]
[1750141443393,1.18371486,107100.0,107090.0,0.005736]
[1750141443614,1.45033894,107100.0,107090.0,0.005736]
[1750141443830,1.64449894,107100.0,107090.0,0.005736]
[1750141445400,1.65969894,107100.0,107090.0,0.005736]
[1750141446699,1.45033894,107100.0,107090.0,0.005736]
[1750141446946,1.64449894,107100.0,107090.0,0.005736]
[1750141451818,1.45033894,107100.0,107090.0,0.005736]
[1750141452050,1.64433894,107100.0,107090.0,0.005736]
[1750141453549,1.67643894,107100.0,107090.0,0.005736]
[1750141456458,1.70426158,107100.0,107090.0,0.005736]
[1750141458584,2.03080284,107100.0,107090.0,0.005736]
[1750141458808,2.08080284,107100.0,107090.0,0.005736]
[1750141459244,2.117928,107100.0,107090.0,0.005736]
[1750141459898,2.09010536,107100.0,107090.0,0.005736]
[1750141460325,2.09010536,107100.0,107090.0,0.003736]
[1750141460582,2.11795153,107100.0,107090.0,0.003736]
[1750141460788,2.09110536,107100.0,107090.0,0.003736]
[1750141461252,0.60605325,107090.0,107080.0,0.07672667]
[1750141461468,1.33906216,107090.0,107080.0,0.07672667]
[1750141462593,1.33953464,107090.0,107080.0,0.07672667]
[1750141463028,0.87875056,107090.0,107080.0,0.07672667]
[1750141463259,1.34053464,107090.0,107080.0,0.07872667]
[1750141463702,1.95519683,107090.0,107080.0,0.07972667]
[1750141463930,1.98325183,107090.0,107080.0,0.07972667]
[1750141464145,2.01109744,107090.0,107080.0,0.07972667]
[1750141464361,1.98325183,107090.0,107080.0,0.07972667]
[1750141465018,1.88710261,107090.0,107080.0,0.07972667]
[1750141468465,0.33918453,107080.0,107070.0,0.001]
[1750141468688,0.72920284,107070.0,107060.0,0.81881558]
[1750141468902,6.7490806,107070.0,107060.0,0.81881558]
[1750141469135,6.02821931,107070.0,107060.0,0.81881558]
[1750141469381,0.70769659,107070.0,107060.0,0.81881558]
[1750141469623,1.54670868,107070.0,107060.0,0.81881558]
[1750141469873,1.31631664,107070.0,107060.0,0.81881558]
[1750141470104,1.1493846,107070.0,107060.0,0.81981558]
[1750141470331,1.60616868,107070.0,107060.0,0.81881558]
[1750141470554,1.41224868,107070.0,107060.0,0.81881558]
[1750141470779,1.63252044,107070.0,107060.0,0.81881558]
[1750141470997,1.63282654,107070.0,107060.0,0.81881558]
[1750141471456,1.61059478,107070.0,107060.0,0.81881558]
[1750141471881,1.61659478,107070.0,107060.0,0.81981558]
[1750141472098,1.63882009,107070.0,107060.0,0.81981558]
[1750141472535,1.61659478,107070.0,107060.0,0.81981558]
[1750141472757,1.61655478,107070.0,107060.0,0.81981558]
[1750141474344,1.70010676,107070.0,107060.0,0.81981558]
[1750141474978,1.38600969,107070.0,107060.0,0.81981558]
[1750141475395,1.61655478,107070.0,107060.0,0.81981558]
[1750141476261,1.63876394,107070.0,107060.0,0.81981558]
[1750141477548,2.13206394,107070.0,107060.0,0.81981558]
[1750141478805,2.23206394,107070.0,107060.0,0.81981558]
[1750141479011,2.32821316,107070.0,107060.0,0.81981558]
[1750141480774,1.27961376,107070.0,107060.0,0.81981558]
[1750141481012,1.87015885,107070.0,107060.0,0.81981558]
[1750141481238,1.40855707,107070.0,107060.0,0.81981558]
[1750141481521,0.84894791,107070.0,107060.0,0.85121558]
[1750141481729,0.25940615,107070.0,107060.0,0.85121558]
[1750141481939,0.83046284,107070.0,107060.0,0.85121558]
[1750141482145,0.80240284,107070.0,107060.0,0.85121558]
[1750141482358,0.46240284,107070.0,107060.0,0.85121558]
[1750141482575,0.79640284,107070.0,107060.0,0.85021558]
[1750141482806,0.79652284,107070.0,107060.0,0.85021558]
[1750141483018,0.79452284,107070.0,107060.0,0.85121558]
[1750141483245,0.60140284,107070.0,107060.0,0.85121558]
[1750141483452,0.79552284,107070.0,107060.0,0.85121558]
[1750141490675,0.75846615,107070.0,107060.0,0.85121558]
[1750141490898,0.79552284,107070.0,107060.0,0.85121558]
[1750141495987,0.64160284,107070.0,107060.0,0.85121558]
[1750141496229,0.79536284,107070.0,107060.0,0.85121558]
[1750141496437,0.75830615,107070.0,107060.0,0.85121558]
[1750141496642,0.79532284,107070.0,107060.0,0.85121558]
[1750141508438,1.02586793,107070.0,107060.0,0.81981558]
[1750141508900,1.02586793,107070.0,107060.0,0.75314891]
[1750141510806,1.15390969,107070.0,107060.0,0.75314891]
[1750141514477,1.40675251,107070.0,107060.0,0.75314891]
[1750141514700,1.17620742,107070.0,107060.0,0.75314891]
[1750141518405,1.02248742,107070.0,107060.0,0.75314891]
[1750141518676,1.15390969,107070.0,107060.0,0.75314891]
[1750141519085,1.17619414,107070.0,107060.0,0.75314891]
[1750141521461,1.17619209,107070.0,107060.0,0.75314891]
[1750141521666,1.15390969,107070.0,107060.0,0.75314891]
[1750141524147,1.17619171,107070.0,107060.0,0.75314891]
[1750141524353,1.17619169,107070.0,107060.0,0.75314891]
[1750141524817,1.502886,107070.0,107060.0,0.75314891]
[1750141524972,1.52541646,107070.0,107060.0,0.75314891]
[1750141525189,1.40673678,107070.0,107060.0,0.75314891]
[1750141525399,1.42414233,107070.0,107060.0,0.75314891]
[1750141525562,1.40673678,107070.0,107060.0,0.75314891]
[1750141526610,1.42414239,107070.0,107060.0,0.75314891]
[1750141526826,1.52029161,107070.0,107060.0,0.75314891]
[1750141527470,1.42414239,107070.0,107060.0,0.75314891]
[1750141527871,1.90003678,107070.0,107060.0,0.75314891]
[1750141528291,1.91743399,107070.0,107060.0,0.75314891]
[1750141528511,1.90003678,107070.0,107060.0,0.75314891]
[1750141529016,1.91743391,107070.0,107060.0,0.75314891]
[1750141529226,2.01358313,107070.0,107060.0,0.75314891]
[1750141529830,1.91743391,107070.0,107060.0,0.75314891]
[1750141530134,1.90003678,107070.0,107060.0,0.75314891]
[1750141534340,1.4389466,107070.0,107060.0,0.75314891]
[1750141534546,1.90003678,107070.0,107060.0,0.75314891]
[1750141542913,1.92788239,107070.0,107060.0,0.75314891]
[1750141543133,2.04143129,107070.0,107060.0,0.75314891]
[1750141543357,2.06949129,107070.0,107060.0,0.75314891]
[1750141544881,2.0694932,107070.0,107060.0,0.75314891]
[1750141545340,2.06949316,107070.0,107060.0,0.75314891]
[1750141547605,2.05209161,107070.0,107060.0,0.75314891]
[1750141547829,2.06949256,107070.0,107060.0,0.75314891]
[1750141548066,1.97334334,107070.0,107060.0,0.75314891]
[1750141549239,1.93628665,107070.0,107060.0,0.75314891]
[1750141549460,1.97334334,107070.0,107060.0,0.75314891]
[1750141549858,1.97308736,107070.0,107060.0,0.75314891]
[1750141550607,1.95568641,107070.0,107060.0,0.75314891]
[1750141550843,1.9730895,107070.0,107060.0,0.75314891]
[1750141551070,2.06923872,107070.0,107060.0,0.75314891]
[1750141551281,1.9730495,107070.0,107060.0,0.75314891]
[1750141552113,1.97305394,107070.0,107060.0,0.75314891]
[1750141552349,1.97188772,107070.0,107060.0,0.75314891]
[1750141553485,2.00901288,107070.0,107060.0,0.75356555]
[1750141553930,1.5479227,107070.0,107060.0,0.75356555]
[1750141554183,2.00901288,107070.0,107060.0,0.75356555]
[1750141554943,1.98116727,107070.0,107060.0,0.75356555]
[1750141555398,2.08384736,107070.0,107060.0,0.75356555]
[1750141555616,2.08385544,107070.0,107060.0,0.75356555]
[1750141556310,2.08385547,107070.0,107060.0,0.75356555]
[1750141556542,2.0773246,107070.0,107060.0,0.75356555]
[1750141557047,1.8834446,107070.0,107060.0,0.75356555]
[1750141557268,2.0773246,107070.0,107060.0,0.75356555]
[1750141557514,1.97991934,107070.0,107060.0,0.75356555]
[1750141559517,1.97325808,107070.0,107060.0,0.75356555]
[1750141559948,1.98259758,107070.0,107060.0,0.75356555]
[1750141561753,1.98258895,107070.0,107060.0,0.75356555]
[1750141562640,2.01043537,107070.0,107060.0,0.75356555]
[1750141563071,2.10658459,107070.0,107060.0,0.75356555]
[1750141564529,2.01043537,107070.0,107060.0,0.75356555]
[1750141564745,2.01043402,107070.0,107060.0,0.75356555]
[1750141566341,2.01043402,107070.0,107060.0,0.75206444]
[1750141566567,2.01043699,107070.0,107060.0,0.75206444]
[1750141567267,1.67387005,107070.0,107060.0,0.75206444]
[1750141567495,1.94147183,107070.0,107060.0,0.75206444]
[1750141567759,1.94147263,107070.0,107060.0,0.75206444]
[1750141568213,1.95727263,107070.0,107060.0,0.75206444]
[1750141568652,1.97277263,107070.0,107060.0,0.75206444]
[1750141570489,1.95536617,107070.0,107060.0,0.75206444]
[1750141570727,1.97277665,107070.0,107060.0,0.75206444]
[1750141574382,1.93571996,107070.0,107060.0,0.75206444]
[1750141574621,1.97277665,107070.0,107060.0,0.75206444]
[1750141575065,1.97276727,107070.0,107060.0,0.75206444]
[1750141576198,1.97277001,107070.0,107060.0,0.75206444]
[1750141578953,1.97276972,107070.0,107060.0,0.75206444]